bitfinex/quotes_BTCUSD_20250615
["timestamp","ask_amount","ask_price","bid_price","bid_amount"]
[1750021795253,0.30147571,104810.0,104800.0,1.91712969]
[1750021795471,0.30147571,104810.0,104800.0,1.91712949]
[1750021795879,0.31101678,104810.0,104800.0,1.91712944]
[1750021796205,0.31101678,104810.0,104800.0,2.01327866]
[1750021796336,0.31101678,104810.0,104800.0,1.97575932]
[1750021796574,0.31101678,104810.0,104800.0,1.35985108]
[1750021796774,0.31101678,104810.0,104800.0,1.97575932]
[1750021797175,0.31101678,104810.0,104800.0,1.96905247]
[1750021797389,0.31101678,104810.0,104800.0,1.97575932]
[1750021797617,0.31101678,104810.0,104800.0,1.96905247]
[1750021797826,0.11065423,104810.0,104800.0,1.97575932]
[1750021798053,0.11065423,104810.0,104800.0,1.96905247]
[1750021798257,0.11065423,104810.0,104800.0,1.97575928]
[1750021798480,0.11065423,104810.0,104800.0,2.01327862]
[1750021798617,0.30147562,104810.0,104800.0,2.00657181]
[1750021798821,0.12019521,104810.0,104800.0,1.97575915]
[1750021799027,0.30147562,104810.0,104800.0,1.9757592]
[1750021799580,0.30147562,104810.0,104800.0,1.96905247]
[1750021799936,0.11065414,104810.0,104800.0,1.96905247]
[1750021800145,0.11065414,104810.0,104800.0,1.97575919]
[1750021800334,0.3014758,104810.0,104800.0,1.96905247]
[1750021800530,0.3014758,104810.0,104800.0,1.97575913]
[1750021800951,0.3014758,104810.0,104800.0,1.96905247]
[1750021801561,0.3014758,104810.0,104800.0,1.97575922]
[1750021801765,0.3014758,104810.0,104800.0,1.96905247]
[1750021802517,0.3014758,104810.0,104800.0,1.97575921]
[1750021803721,0.10111325,104810.0,104800.0,1.96905247]
[1750021803966,0.11065423,104810.0,104800.0,1.97575921]
[1750021804146,0.1201953,104810.0,104800.0,1.96905247]
[1750021804354,0.1201953,104810.0,104800.0,1.9757592]
[1750021804575,0.1201953,104810.0,104800.0,1.97577448]
[1750021804926,0.31101678,104810.0,104800.0,1.97577448]
[1750021805333,0.31101678,104810.0,104800.0,1.96905247]
[1750021805530,0.31101678,104810.0,104800.0,1.97577448]
[1750021805732,0.11065423,104810.0,104800.0,1.97577448]
[1750021806229,0.30147571,104810.0,104800.0,1.97577447]
[1750021807036,0.31101678,104810.0,104800.0,1.97577447]
[1750021807411,0.31101678,104810.0,104800.0,1.97577448]
[1750021807736,0.31101678,104810.0,104800.0,1.97577449]
[1750021807963,0.11065423,104810.0,104800.0,1.97577449]
[1750021808159,0.11065423,104810.0,104800.0,1.97577448]
[1750021808367,0.31101678,104810.0,104800.0,1.97577448]
[1750021808787,0.31101678,104810.0,104800.0,1.96905247]
[1750021808986,0.31101678,104810.0,104800.0,1.97577449]
[1750021809648,0.1201953,104810.0,104800.0,1.35986624]
[1750021809822,0.30147626,104810.0,104800.0,1.35986624]
[1750021810021,0.30147626,104810.0,104800.0,1.87962528]
[1750021810215,0.30147626,104810.0,104800.0,1.87290325]
[1750021810498,0.30147626,104810.0,104800.0,1.87962528]
[1750021810709,0.30147626,104810.0,104800.0,1.87290325]
[1750021810914,0.30147626,104810.0,104800.0,1.26371704]
[1750021811145,0.29193546,104810.0,104800.0,1.26371704]
[1750021811596,0.29193546,104810.0,104800.0,1.27364992]
[1750021812019,0.29193546,104810.0,104800.0,1.27364994]
[1750021812229,0.29193546,104810.0,104800.0,1.11296994]
[1750021812440,0.29193546,104810.0,104800.0,1.10624789]
[1750021812657,0.29193546,104810.0,104800.0,1.31640994]
[1750021812890,0.30147617,104810.0,104800.0,1.92559613]
[1750021813100,0.30147617,104810.0,104800.0,1.93231817]
[1750021813285,0.30147617,104810.0,104800.0,1.92559613]
[1750021813838,0.30147617,104810.0,104800.0,1.93231816]
[1750021814040,0.30147617,104810.0,104800.0,1.92559613]
[1750021814239,0.30147617,104810.0,104800.0,1.31640992]
[1750021814691,0.30147617,104810.0,104800.0,1.30968789]
[1750021814857,0.30147617,104810.0,104800.0,1.31640992]
[1750021815060,0.30147617,104810.0,104800.0,1.30968789]
[1750021815262,0.29193546,104810.0,104800.0,1.30968789]
[1750021815461,0.29193546,104810.0,104800.0,1.31640992]
[1750021816259,0.29193546,104810.0,104800.0,1.10624789]
[1750021816466,0.29193546,104810.0,104800.0,1.30647705]
[1750021816669,0.29193546,104810.0,104800.0,1.09631501]
[1750021816871,0.29193546,104810.0,104800.0,1.91566325]
[1750021818049,0.29193546,104810.0,104800.0,1.92237507]
[1750021818256,0.29193546,104810.0,104800.0,1.91566325]
[1750021819089,0.29193546,104810.0,104800.0,1.92237507]
[1750021819291,0.29193546,104810.0,104800.0,1.30646683]
[1750021819494,0.29193546,104810.0,104800.0,1.91566325]
[1750021819701,0.29193546,104810.0,104800.0,1.92237507]
[1750021820111,0.29193546,104810.0,104800.0,1.91566325]
[1750021820319,0.29193546,104810.0,104800.0,1.95318259]
[1750021820496,0.29193546,104810.0,104800.0,1.95989441]
[1750021821149,0.29193546,104810.0,104800.0,1.95318259]
[1750021821357,0.29193546,104810.0,104800.0,1.95989441]
[1750021821782,0.29193546,104810.0,104800.0,1.95318259]
[1750021821989,0.29193546,104810.0,104800.0,1.33727435]
[1750021822200,0.29193546,104810.0,104800.0,1.95989441]
[1750021823161,0.29193546,104810.0,104800.0,2.01564898]
[1750021823404,0.29193546,104810.0,104800.0,1.98700294]
[1750021824458,0.29193546,104810.0,104800.0,1.98696294]
[1750021824729,0.29193546,104810.0,104800.0,1.98697315]
[1750021825258,0.29193546,104810.0,104800.0,1.16094288]
[1750021825463,0.29193546,104810.0,104800.0,1.36434288]
[1750021825671,0.29193546,104810.0,104800.0,1.37106492]
[1750021825879,0.29193546,104810.0,104800.0,1.98697316]
[1750021826355,0.29193546,104810.0,104800.0,1.98025112]
[1750021826580,0.29193546,104810.0,104800.0,1.98697316]
[1750021826860,0.29193546,104810.0,104800.0,1.98697315]
[1750021827124,1.876012,104810.0,104800.0,1.05414876]
[1750021827342,1.89095607,104810.0,104800.0,1.03219225]
[1750021827579,1.89095607,104810.0,104800.0,1.02546897]
[1750021827997,1.89095607,104810.0,104800.0,1.03219238]
[1750021828216,1.89095607,104810.0,104800.0,1.02546897]
[1750021828421,1.89095607,104810.0,104800.0,1.03219254]
[1750021828632,1.89095607,104810.0,104800.0,1.00925402]
[1750021828852,1.876012,104810.0,104800.0,1.00925408]
[1750021831223,1.877012,104810.0,104800.0,1.00253045]
[1750021831634,1.879012,104810.0,104800.0,1.00253045]
[1750021832678,1.26310376,104810.0,104800.0,1.00253045]
[1750021832881,1.879012,104810.0,104800.0,1.00253045]
[1750021833719,1.879012,104810.0,104800.0,1.00005045]
[1750021834392,1.8939565,104810.0,104800.0,1.00005045]
[1750021838557,1.27804826,104810.0,104800.0,1.00005045]
[1750021838785,1.8939565,104810.0,104800.0,1.00005045]
[1750021841755,1.71672785,104810.0,104800.0,1.00005045]
[1750021842191,1.83958545,104810.0,104800.0,1.00005045]
[1750021845116,2.6508832,104810.0,104800.0,1.00005045]
[1750021845329,2.03497496,104810.0,104800.0,1.00005045]
[1750021845473,2.06368696,104810.0,104800.0,1.00005045]
[1750021845674,2.04874246,104810.0,104800.0,1.00005045]
[1750021847417,2.04870246,104810.0,104800.0,1.00005045]
[1750021849350,2.01371295,104810.0,104800.0,1.00005045]
[1750021849568,1.85335295,104810.0,104800.0,1.00005045]
[1750021849769,2.01371295,104810.0,104800.0,1.00005045]
[1750021850198,1.85335295,104810.0,104800.0,1.00005045]
[1750021850532,2.01371295,104810.0,104800.0,1.00005045]
[1750021851307,1.97021295,104810.0,104800.0,1.00005045]
[1750021851505,2.01601295,104810.0,104800.0,1.00005045]
[1750021851710,2.03095791,104810.0,104800.0,1.00005045]
[1750021855013,1.84563249,104810.0,104800.0,1.00005045]
[1750021855396,2.03645397,104810.0,104800.0,1.00005045]
[1750021863213,1.99065397,104810.0,104800.0,1.00005045]
[1750021863435,2.01185397,104810.0,104800.0,1.00005045]
[1750021867383,1.39594573,104810.0,104800.0,1.00005045]
[1750021867617,1.99065397,104810.0,104800.0,1.00005045]
[1750021870385,1.72227258,104810.0,104800.0,1.00005045]
[1750021874483,2.06227258,104810.0,104800.0,1.00005045]
[1750021875759,0.85422336,104850.0,104800.0,1.00005045]
[1750021875760,0.19081196,104870.0,104800.0,2.4465997]
[1750021875976,0.19081196,104870.0,104840.0,0.61590824]
[1750021875977,0.02796571,104860.0,104840.0,0.61590824]
[1750021876183,0.2095455,104860.0,104850.0,0.21075372]
[1750021876399,0.64425867,104860.0,104850.0,0.22632858]
[1750021876626,0.06585535,104860.0,104850.0,0.22632858]
[1750021876836,0.06585535,104860.0,104850.0,0.30191794]
[1750021876837,0.64425867,104860.0,104850.0,0.30191794]
[1750021877058,0.0277105,104860.0,104850.0,0.30191794]
[1750021877275,0.61590824,104860.0,104850.0,0.34113619]
[1750021877498,0.65341168,104860.0,104850.0,0.34127861]
[1750021877739,0.66205168,104860.0,104850.0,0.34127861]
[1750021877958,0.04614344,104860.0,104850.0,0.95718685]
[1750021878187,0.01907059,104870.0,104850.0,0.9179686]
[1750021878401,0.02860538,104870.0,104860.0,0.61590824]
[1750021878621,0.0381409,104870.0,104860.0,0.63830824]
[1750021878884,0.34953488,104870.0,104860.0,0.63830824]
[1750021879099,0.36855165,104870.0,104860.0,0.56909864]
[1750021879319,0.57833491,104870.0,104860.0,0.56909864]
[1750021879536,0.38762251,104870.0,104860.0,0.56909864]
[1750021879980,0.57833482,104870.0,104860.0,0.56909864]
[1750021880209,0.38762251,104870.0,104860.0,0.57209864]
[1750021880419,0.56879994,104870.0,104860.0,0.57209864]
[1750021880858,1.11549858,104870.0,104860.0,0.0254]
[1750021881288,0.36855211,104870.0,104860.0,0.0254]
[1750021881521,0.37808763,104870.0,104860.0,0.0254]
[1750021881942,0.56879994,104870.0,104860.0,0.0254]
[1750021882156,0.36855211,104870.0,104860.0,0.0264]
[1750021882376,0.01901659,104870.0,104860.0,0.07985511]
[1750021882603,0.77549849,104870.0,104860.0,0.1866]
[1750021882810,0.78503355,104870.0,104860.0,0.1866]
[1750021883023,0.23833491,104870.0,104860.0,0.05]
[1750021883234,0.22880003,104870.0,104860.0,0.2102]
[1750021884125,0.21926497,104870.0,104860.0,0.2102]
[1750021884355,0.76596361,104870.0,104860.0,0.2102]
[1750021885866,0.76596361,104870.0,104860.0,0.21016]
[1750021886706,0.21926497,104870.0,104860.0,0.21016]
[1750021886914,0.76596361,104870.0,104860.0,0.21016]
[1750021887773,0.77485777,104870.0,104860.0,0.21016]
[1750021888157,0.76596361,104870.0,104860.0,0.21016]
[1750021888647,0.77485778,104870.0,104860.0,0.21016]
[1750021888849,0.77485792,104870.0,104860.0,0.21016]
[1750021889028,0.76596361,104870.0,104860.0,0.21016]
[1750021889285,0.77485756,104870.0,104860.0,0.21016]
[1750021889508,0.22815888,104870.0,104860.0,0.21016]
[1750021889722,0.76596361,104870.0,104860.0,0.21016]
[1750021890170,0.7748576,104870.0,104860.0,0.21016]
[1750021890621,0.77485759,104870.0,104860.0,0.21016]
[1750021890835,0.22815895,104870.0,104860.0,0.21016]
[1750021891056,0.77485759,104870.0,104860.0,0.21016]
[1750021891488,0.76596361,104870.0,104860.0,0.21016]
[1750021891702,0.77485762,104870.0,104860.0,0.21016]
[1750021892151,0.76596361,104870.0,104860.0,0.21016]
[1750021893032,0.77485763,104870.0,104860.0,0.21016]
[1750021893484,0.77485763,104870.0,104860.0,0.23283088]
[1750021893912,0.76596361,104870.0,104860.0,0.23283088]
[1750021894127,0.77485763,104870.0,104860.0,0.23283088]
[1750021894747,0.76596361,104870.0,104860.0,0.23283088]
[1750021894967,0.77485762,104870.0,104860.0,0.23283088]
[1750021895596,0.77485762,104870.0,104860.0,0.07267088]
[1750021895818,1.20211283,104870.0,104860.0,0.004]
[1750021896033,1.47169473,104870.0,104860.0,0.004]
[1750021896252,1.46280161,104870.0,104860.0,0.004]
[1750021896470,0.91610297,104870.0,104860.0,0.004]
[1750021896702,1.46280161,104870.0,104860.0,0.004]
[1750021896913,1.47168433,104870.0,104860.0,0.004]
[1750021897162,1.46280161,104870.0,104860.0,0.004]
[1750021897375,1.4716843,104870.0,104860.0,0.004]
[1750021897583,1.47168433,104870.0,104860.0,0.004]
[1750021897793,1.56783353,104870.0,104860.0,0.004]
[1750021897997,1.56783354,104870.0,104860.0,0.004]
[1750021898425,1.56783353,104870.0,104860.0,0.004]
[1750021898654,1.55895083,104870.0,104860.0,0.004]
[1750021898863,1.4716843,104870.0,104860.0,0.004]
[1750021899319,1.46280161,104870.0,104860.0,0.004]
[1750021899543,1.47168431,104870.0,104860.0,0.004]
[1750021899975,1.46280161,104870.0,104860.0,0.004]
[1750021900204,1.56783353,104870.0,104860.0,0.004]
[1750021900647,1.55895083,104870.0,104860.0,0.004]
[1750021900878,1.4716843,104870.0,104860.0,0.004]
[1750021901356,1.47168429,104870.0,104860.0,0.00152]
[1750021901824,1.4716843,104870.0,104860.0,0.00152]
[1750021902084,1.47168434,104870.0,104860.0,0.00152]
[1750021902344,1.4716847,104870.0,104860.0,0.00152]
[1750021902575,1.46280161,104870.0,104860.0,0.00152]
[1750021902793,1.4716851,104870.0,104860.0,0.00152]
[1750021903010,1.01906547,104860.0,104850.0,0.07573178]
[1750021903226,1.52802887,104860.0,104850.0,0.0534786]
[1750021903438,1.52802843,104860.0,104850.0,0.0534786]
[1750021903686,1.52802841,104860.0,104850.0,0.02225318]
[1750021903896,1.5587368,104860.0,104850.0,0.01079318]
[1750021904126,0.54984292,104840.0,104830.0,0.15148089]
[1750021904344,1.10542438,104840.0,104830.0,0.17437382]
[1750021904769,1.10542434,104840.0,104830.0,0.17437382]
[1750021905029,1.10542432,104840.0,104830.0,0.17437382]
[1750021905257,0.01454085,104830.0,104820.0,0.03785538]
[1750021905481,0.01454085,104830.0,104800.0,0.99996]
[1750021905482,0.54036237,104810.0,104800.0,0.99996]
[1750021905693,0.54036237,104810.0,104800.0,1.00000724]
[1750021905694,1.42170301,104810.0,104800.0,1.00000724]
[1750021906657,1.67170301,104810.0,104800.0,1.00000724]
[1750021906913,1.79703975,104810.0,104800.0,1.00000724]
[1750021907352,1.79803975,104810.0,104800.0,1.00000724]
[1750021907623,1.70189053,104810.0,104800.0,1.00000724]
[1750021910077,1.86201053,104810.0,104800.0,1.00000724]
[1750021912562,1.70189053,104810.0,104800.0,1.00000724]
[1750021912781,1.86201053,104810.0,104800.0,1.00000724]
[1750021913319,1.95815975,104810.0,104800.0,1.00000724]
[1750021913540,1.86201053,104810.0,104800.0,1.00000724]
[1750021916653,2.29588917,104810.0,104800.0,0.73053031]
[1750021916851,1.93802353,104810.0,104800.0,0.68272034]
[1750021917055,1.93802353,104810.0,104800.0,0.63491037]
[1750021917376,2.03417275,104810.0,104800.0,0.53929043]
[1750021917612,2.03417275,104810.0,104800.0,0.44367049]
[1750021917821,2.03417275,104810.0,104800.0,0.39586052]
[1750021918003,2.58087139,104810.0,104800.0,0.34805055]
[1750021918242,2.58087139,104810.0,104800.0,0.25243061]
[1750021918446,2.03417275,104810.0,104800.0,0.20462064]
[1750021918631,2.03417275,104810.0,104800.0,0.15681067]
[1750021919071,2.03417275,104810.0,104800.0,0.1090007]
[1750021919245,2.03417275,104810.0,104800.0,0.06118618]
[1750021919444,2.03417275,104810.0,104800.0,0.04781452]
[1750021919655,0.54994305,104790.0,104780.0,0.12194936]
[1750021919850,1.43132919,104790.0,104780.0,0.12199674]
[1750021920846,1.46203757,104790.0,104780.0,0.12499674]
[1750021921051,1.43132919,104790.0,104780.0,0.12499674]
[1750021921256,1.43132919,104790.0,104750.0,0.0017]
[1750021921257,0.87380317,104760.0,104750.0,0.0017]
[1750021921426,0.45053457,104720.0,104710.0,0.11874667]
[1750021921627,1.09678221,104720.0,104710.0,0.13092153]
[1750021921856,0.68447795,104720.0,104710.0,0.21586031]
[1750021922057,0.3349295,104720.0,104710.0,0.16966017]
[1750021922263,0.0104647,104720.0,104710.0,0.70987442]
[1750021922665,0.02001315,104720.0,104710.0,0.92044704]
[1750021922942,0.0104647,104720.0,104710.0,0.92044704]
[1750021923167,0.0104647,104720.0,104710.0,1.01659626]
[1750021923388,0.01909535,104730.0,104720.0,0.0477]
[1750021923616,0.00954781,104730.0,104720.0,0.07045793]
[1750021923839,0.00954781,104730.0,104720.0,0.34820478]
[1750021923840,0.00954754,104730.0,104720.0,0.34820478]
[1750021924053,0.00954763,104730.0,104720.0,0.34581793]
[1750021924273,0.21004326,104740.0,104730.0,0.0477]
[1750021924488,0.20049627,104740.0,104730.0,0.0477]
[1750021924912,0.20049627,104740.0,104730.0,0.26344683]
[1750021925126,0.20049627,104740.0,104730.0,0.23726]
[1750021925346,0.54049627,104740.0,104730.0,0.26106]
[1750021926179,0.54049627,104740.0,104730.0,0.26122]
[1750021926428,0.54349627,104740.0,104730.0,0.26122]
[1750021926647,0.54349627,104740.0,104730.0,0.27018874]
[1750021926887,0.54349627,104740.0,104730.0,0.26122]
[1750021927093,0.54349627,104740.0,104730.0,0.27018874]
[1750021927306,0.54449627,104740.0,104730.0,0.26122]
[1750021927533,0.55404326,104740.0,104730.0,0.27018874]
[1750021927744,0.55404326,104740.0,104730.0,0.26122]
[1750021927930,0.55404326,104740.0,104730.0,0.27018874]
[1750021928204,0.35354699,104740.0,104730.0,0.27018874]
[1750021928419,0.35354672,104740.0,104730.0,0.06544889]
[1750021928656,0.3726407,104740.0,104730.0,0.27876889]
[1750021928902,0.3726407,104740.0,104730.0,0.28764351]
[1750021929145,0.3726407,104740.0,104730.0,0.2876435]
[1750021929376,0.36309362,104740.0,104730.0,0.27876912]
[1750021929588,0.36309362,104740.0,104730.0,0.28764352]
[1750021929815,0.35354672,104740.0,104730.0,0.26989449]
[1750021930056,0.36309371,104740.0,104730.0,0.26102]
[1750021930275,0.36309362,104740.0,104730.0,0.26989441]
[1750021930540,0.36309362,104740.0,104730.0,0.29262286]
[1750021930752,0.35354672,104740.0,104730.0,0.28374846]
[1750021930975,0.36309362,104740.0,104730.0,0.28374846]
[1750021931197,0.344,104740.0,104730.0,0.2926227]
[1750021931410,0.35354681,104740.0,104730.0,0.30149697]
[1750021931625,0.35354681,104740.0,104730.0,0.29262272]
[1750021931841,0.35354681,104740.0,104730.0,0.31037118]
[1750021932086,0.35354663,104740.0,104730.0,0.07930225]
[1750021932294,0.344,104740.0,104730.0,0.29222221]
[1750021932498,0.344,104740.0,104730.0,0.28334846]
[1750021932712,0.341,104740.0,104730.0,0.28334846]
[1750021932923,0.341,104740.0,104730.0,0.07042846]
[1750021933143,0.341,104740.0,104730.0,0.55878846]
[1750021933571,0.341,104740.0,104730.0,0.55978846]
[1750021934184,0.35054681,104740.0,104730.0,0.07142846]
[1750021934399,0.35054672,104740.0,104730.0,0.28430846]
[1750021934816,0.341,104740.0,104730.0,0.28430846]
[1750021935245,0.341,104740.0,104730.0,0.07142846]
[1750021935531,0.35054672,104740.0,104730.0,0.10941955]
[1750021935728,0.36964079,104740.0,104730.0,0.32201955]
[1750021935955,0.36964079,104740.0,104730.0,0.10941955]
[1750021936173,0.37918805,104740.0,104730.0,0.32197955]
[1750021936405,0.35054672,104740.0,104730.0,0.32193955]
[1750021936620,0.36009362,104740.0,104730.0,0.28394846]
[1750021936836,0.36009353,104740.0,104730.0,0.28394846]
[1750021937051,0.36009362,104740.0,104730.0,0.32193955]
[1750021937282,0.36009362,104740.0,104730.0,0.28394846]
[1750021937497,0.341,104740.0,104730.0,0.28394846]
[1750021937715,0.3600938,104740.0,104730.0,0.28394846]
[1750021937921,0.36009371,104740.0,104730.0,0.28394846]
[1750021938570,0.35054681,104740.0,104730.0,0.28394846]
[1750021938782,0.341,104740.0,104730.0,0.32193955]
[1750021939193,0.35054681,104740.0,104730.0,0.32193955]
[1750021939404,0.341,104740.0,104730.0,0.32193955]
[1750021939611,0.35054681,104740.0,104730.0,0.32193955]
[1750021939816,0.36009362,104740.0,104730.0,0.32193955]
[1750021940456,0.35054672,104740.0,104730.0,0.32193955]
[1750021941500,0.36009353,104740.0,104730.0,0.32193955]
[1750021941707,0.35054672,104740.0,104730.0,0.32193955]
[1750021941927,0.341,104740.0,104730.0,0.32193955]
[1750021942159,0.35054672,104740.0,104730.0,0.38735581]
[1750021942381,0.341,104740.0,104730.0,0.38735581]
[1750021942604,0.341,104740.0,104730.0,0.32193955]
[1750021943030,0.35054672,104740.0,104730.0,0.32193955]
[1750021943238,0.341,104740.0,104730.0,0.32193955]
[1750021943674,0.35054663,104740.0,104730.0,0.32193955]
[1750021943899,0.35054663,104740.0,104730.0,0.37872262]
[1750021944114,0.341,104740.0,104730.0,0.37872262]
[1750021944741,0.341,104740.0,104730.0,0.44413888]
[1750021944971,0.341,104740.0,104730.0,0.34073153]
[1750021945178,0.341,104740.0,104730.0,0.14275238]
[1750021945385,0.341,104740.0,104730.0,0.35439238]
[1750021946969,0.001,104740.0,104730.0,0.29760931]
[1750021947418,0.001,104740.0,104730.0,0.37332007]
[1750021948105,0.001,104740.0,104730.0,0.37304007]
[1750021948360,0.36863751,104750.0,104730.0,0.32534007]
[1750021948581,0.36863742,104750.0,104740.0,0.11195529]
[1750021948814,0.35909152,104750.0,104740.0,0.13468375]
[1750021949021,0.34954571,104750.0,104740.0,0.13468375]
[1750021949230,0.3686376,104750.0,104740.0,0.34592375]
[1750021949642,0.3696376,104750.0,104740.0,0.34592375]
[1750021949859,0.36009152,104750.0,104740.0,0.34592375]
[1750021950029,0.91755054,104750.0,104740.0,0.31932375]
[1750021950467,0.90800455,104750.0,104740.0,0.31932375]
[1750021950909,0.91855063,104750.0,104740.0,0.10808375]
[1750021951121,0.91855054,104750.0,104740.0,0.31932375]
[1750021951343,0.91755054,104750.0,104740.0,0.31932375]
[1750021951796,0.91955045,104750.0,104740.0,0.31932375]
[1750021952235,0.92909644,104750.0,104740.0,0.31932375]
[1750021952744,0.91955045,104750.0,104740.0,0.31932375]
[1750021953232,0.91000455,104750.0,104740.0,0.31932375]
[1750021953669,0.91955054,104750.0,104740.0,0.31932375]
[1750021953886,0.91000455,104750.0,104740.0,0.31932375]
[1750021954094,0.89091303,104750.0,104740.0,0.31932375]
[1750021954548,0.90045884,104750.0,104740.0,0.31932375]
[1750021954756,0.90045884,104750.0,104740.0,0.34592375]
[1750021954971,0.90045884,104750.0,104740.0,0.39208119]
[1750021955414,0.90045884,104750.0,104740.0,0.43028626]
[1750021955622,0.90045884,104750.0,104740.0,0.38412882]
[1750021955760,0.91000474,104750.0,104740.0,0.38412882]
[1750021956180,0.91000474,104750.0,104740.0,0.35752882]
[1750021956617,0.90045884,104750.0,104740.0,0.35752882]
[1750021956825,0.90045884,104750.0,104740.0,0.36752882]
[1750021957194,0.89091303,104750.0,104740.0,0.18468882]
[1750021957395,0.89091303,104750.0,104740.0,0.39440882]
[1750021957864,0.89091303,104750.0,104740.0,0.35620375]
[1750021958065,0.343,104750.0,104740.0,0.35620375]
[1750021959381,0.343,104750.0,104740.0,0.35604375]
[1750021959591,0.343,104750.0,104740.0,0.14648375]
[1750021959797,0.343,104750.0,104740.0,0.35604375]
[1750021960201,0.89091303,104750.0,104740.0,0.35604375]
[1750021960431,0.89091303,104750.0,104740.0,0.45219297]
[1750021961325,0.90045874,104750.0,104740.0,0.14648375]
[1750021961536,0.90045874,104750.0,104740.0,0.35600375]
[1750021961737,0.89091303,104750.0,104740.0,0.35600375]
[1750021962554,0.90045874,104750.0,104740.0,0.35600375]
[1750021963363,0.91000464,104750.0,104740.0,0.39389636]
[1750021963691,0.90045874,104750.0,104740.0,0.39389636]
[1750021963898,0.91000464,104750.0,104740.0,0.39389636]
[1750021964344,0.89091303,104750.0,104740.0,0.39389636]
[1750021964953,0.90045884,104750.0,104740.0,0.39373636]
[1750021965447,0.90045884,104750.0,104740.0,0.12819636]
[1750021965667,0.90045884,104750.0,104740.0,0.30863839]
[1750021965668,0.91000483,104750.0,104740.0,0.30863839]
[1750021965872,0.919551,104750.0,104740.0,0.30855839]
[1750021966112,0.91000483,104750.0,104740.0,0.30855839]
[1750021966332,0.919551,104750.0,104740.0,0.09959839]
[1750021966549,0.919551,104750.0,104740.0,0.30855839]
[1750021966756,0.93864379,104750.0,104740.0,0.30855839]
[1750021967418,0.92909726,104750.0,104740.0,0.30855839]
[1750021967622,0.9386437,104750.0,104740.0,0.30855839]
[1750021967835,0.92909726,104750.0,104740.0,0.30855839]
[1750021968080,0.9386437,104750.0,104740.0,0.30855839]
[1750021968296,0.92909726,104750.0,104740.0,0.30855839]
[1750021968547,0.91000483,104750.0,104740.0,0.30855839]
[1750021968762,0.92909735,104750.0,104740.0,0.30855839]
[1750021969401,0.92909735,104750.0,104740.0,0.26794578]
[1750021970063,1.286575,104750.0,104740.0,0.26774578]
[1750021970269,1.44529803,104750.0,104740.0,0.26774578]
[1750021970697,1.45484456,104750.0,104740.0,0.26762578]
[1750021970902,1.43575249,104750.0,104740.0,0.05898578]
[1750021971125,1.43575249,104750.0,104740.0,0.26762578]
[1750021971533,1.43575249,104750.0,104740.0,0.26758578]
[1750021973901,1.46135249,104750.0,104740.0,0.26758578]
[1750021974113,1.45180614,104750.0,104740.0,0.26758578]
[1750021974769,1.45180614,104750.0,104740.0,0.05898578]
[1750021974900,1.47750614,104750.0,104740.0,0.26730578]
[1750021975321,1.47750614,104750.0,104740.0,0.05898578]
[1750021975524,1.47750614,104750.0,104740.0,0.26730578]
[1750021976004,1.57365536,104750.0,104740.0,0.26730578]
[1750021976258,1.47750614,104750.0,104740.0,0.26730578]
[1750021976463,1.47750614,104750.0,104740.0,0.26726578]
[1750021976673,1.47750614,104750.0,104740.0,0.26718578]
[1750021978157,0.54049636,104740.0,104730.0,10.05180055]
[1750021978373,1.08840939,104740.0,104730.0,10.01358794]
[1750021978580,1.08840939,104740.0,104730.0,10.23063246]
[1750021978761,1.08840939,104740.0,104730.0,10.22166794]
[1750021978982,1.08840939,104740.0,104730.0,10.23063244]
[1750021979167,1.08840939,104740.0,104730.0,10.22166794]
[1750021979315,1.08840939,104740.0,104730.0,10.22266794]
[1750021979547,1.08840939,104740.0,104730.0,10.31881716]
[1750021979961,1.08840939,104740.0,104730.0,10.32778158]
[1750021980192,1.08840939,104740.0,104730.0,10.23163237]
[1750021980643,1.08840939,104740.0,104730.0,10.22266794]
[1750021980853,1.08840939,104740.0,104730.0,10.01458794]
[1750021981056,1.11540939,104740.0,104730.0,10.22246794]
[1750021981656,1.11540939,104740.0,104730.0,10.21974101]
[1750021981856,1.14120939,104740.0,104730.0,10.01186101]
[1750021982079,1.23735861,104740.0,104730.0,9.96019274]
[1750021982246,1.14120939,104740.0,104730.0,9.8623348]
[1750021982454,1.14120939,104740.0,104730.0,10.02230618]
[1750021982669,1.14120939,104740.0,104730.0,9.92617756]
[1750021982876,1.14120939,104740.0,104730.0,9.83047894]
[1750021983292,1.14120939,104740.0,104730.0,9.78265032]
[1750021983776,1.14120939,104740.0,104730.0,9.76210657]
[1750021984004,1.14120939,104740.0,104730.0,9.72003657]
[1750021984219,1.14120939,104740.0,104730.0,9.69973326]
[1750021984427,1.14320939,104740.0,104730.0,9.69973326]
[1750021984643,1.14320939,104740.0,104730.0,9.65090464]
[1750021984855,1.14420939,104740.0,104730.0,9.60306344]
[1750021985082,1.14420939,104740.0,104730.0,9.55591344]
[1750021985301,1.14420939,104740.0,104730.0,9.30031224]
[1750021985518,1.24035861,104740.0,104730.0,9.20514104]
[1750021985744,1.24035861,104740.0,104730.0,9.23315521]
[1750021985959,1.14420939,104740.0,104730.0,9.14792447]
[1750021986177,1.14420939,104740.0,104730.0,9.10015447]
[1750021986431,1.14420939,104740.0,104730.0,9.05231327]
[1750021986651,1.14420939,104740.0,104730.0,9.00447207]
[1750021987306,1.14420939,104740.0,104730.0,8.99992207]
[1750021987518,1.14420939,104740.0,104730.0,8.97961825]
[1750021987743,1.14420939,104740.0,104730.0,8.95931416]
[1750021987950,1.14420939,104740.0,104730.0,8.93901046]
[1750021988373,1.78827164,104740.0,104730.0,8.36105896]
[1750021988594,1.14420939,104740.0,104730.0,8.26718803]
[1750021988803,1.14420939,104740.0,104730.0,8.26718804]
[1750021989029,1.14420939,104740.0,104730.0,8.16253536]
[1750021989441,1.14420939,104740.0,104730.0,6.23920416]
[1750021989884,1.24035861,104740.0,104730.0,6.19136296]
[1750021990096,1.24035861,104740.0,104730.0,6.12985454]
[1750021990333,1.24035861,104740.0,104730.0,6.03417252]
[1750021990536,1.24035861,104740.0,104730.0,5.98633151]
[1750021990736,1.24035861,104740.0,104730.0,5.89064949]
[1750021991165,1.24035861,104740.0,104730.0,5.79496747]
[1750021991370,1.24035861,104740.0,104730.0,5.80393766]
[1750021991594,1.24035861,104740.0,104730.0,5.69928545]
[1750021991803,1.14420939,104740.0,104730.0,5.69928545]
[1750021992443,1.14420939,104740.0,104730.0,5.66748545]
[1750021992644,1.14420939,104740.0,104730.0,5.66268546]
[1750021993300,1.14420939,104740.0,104730.0,5.63980547]
[1750021993518,1.14420939,104740.0,104730.0,5.63557603]
[1750021994140,1.17293739,104740.0,104730.0,5.63557603]
[1750021994357,1.17293739,104740.0,104730.0,5.62118604]
[1750021994781,1.17293739,104740.0,104730.0,5.61736604]
[1750021994991,1.17293739,104740.0,104730.0,5.60641604]
[1750021995617,1.65863739,104740.0,104730.0,5.70256526]
[1750021995822,1.65863739,104740.0,104730.0,5.81197604]
[1750021998946,1.65863739,104740.0,104730.0,5.60641604]
[1750021999182,1.65863739,104740.0,104730.0,5.76769604]